lending/lending_fUSD_20250122
["ID","MTS","AMOUNT","RATE_DAILY","PERIOD"]
[349957125,1737535859971,-859.9,0.00020541,2]
[349957126,1737535859980,-564.94,0.00020541,2]
[349957127,1737535859990,-500.0,0.00020541,2]
[349957128,1737535859999,-500.0,0.00020541,2]
[349957129,1737535860009,-790.06,0.00020541,2]
[349957130,1737535860019,-2269.74,0.00020541,2]
[349957131,1737535860029,-500.0,0.00020541,2]
[349957132,1737535860039,-4879.48,0.00020541,2]
[349957133,1737535860049,-500.0,0.00020541,2]
[349957134,1737535860058,-1144.32,0.00020541,2]
[349957135,1737535860179,-500.0,0.00020541,2]
[349957136,1737535860189,-2054.82,0.00020541,2]
[349957137,1737535860200,-827.92,0.00020541,2]
[349957138,1737535860210,-1961.71,0.00020541,2]
[349957139,1737535860220,-1416.44,0.00020541,2]
[349957140,1737535860229,-3220.53,0.00020541,2]
[349957141,1737535860240,-500.0,0.00020541,2]
[349957142,1737535860250,-2309.19,0.00020541,2]
[349957143,1737535860260,-1086.97,0.00020541,2]
[349957144,1737535860270,-836.64,0.00020541,2]
[349957145,1737535860281,-1125.48,0.00020541,2]
[349957146,1737535860291,-1355.86,0.00020541,2]
[349957147,1737535860301,-537.78,0.00020541,2]
[349957148,1737535860311,-644.18,0.00020541,2]
[349957149,1737535860321,-4222.06,0.00020541,2]
[349957150,1737535860331,-1148.64,0.00020541,2]
[349957151,1737535860341,-1996.49,0.00020541,2]
[349957152,1737535860352,-602.96710998,0.00020541,2]
[349957153,1737535860361,-3033.92,0.00020541,2]
[349957154,1737535860371,-500.0,0.00020541,2]
[349957155,1737535860381,-2532.04,0.00020541,2]
[349957156,1737535860391,-574.92,0.00020541,2]
[349957157,1737535860401,-940.76,0.00020541,2]
[349957158,1737535860411,-500.0,0.00020541,2]
[349957159,1737535860421,-1198.58,0.00020541,2]
[349957160,1737535860431,-1231.92,0.00020541,2]
[349957161,1737535860440,-1021.16,0.00020541,2]
[349957162,1737535860451,-500.0,0.00020541,2]
[349957163,1737535860460,-850.43,0.00020541,2]
[349957164,1737535860469,-626.58,0.00020541,2]
[349957165,1737535860478,-1522.34,0.00020541,2]
[349957166,1737535860488,-1365.0,0.00020541,2]
[349957167,1737535860498,-168.074362,0.00020541,2]
[349957168,1737535860508,-603.87,0.00020541,2]
[349957169,1737535860517,-500.0,0.00020541,2]
[349957170,1737535860526,-168.074362,0.00020541,2]
[349957171,1737535860536,-1288.07,0.00020541,2]
[349957172,1737535860546,-844.42,0.00020541,2]
[349957173,1737535860556,-500.0,0.00020541,2]
[349957174,1737535860566,-566.83,0.00020541,2]
[349957175,1737535860576,-537.66,0.00020541,2]
[349957176,1737535860586,-511.79,0.00020541,2]
[349957177,1737535860595,-913.82,0.00020541,2]
[349957178,1737535860605,-2700.97,0.00020541,2]
[349957179,1737535860613,-263.41,0.00020541,2]
[349957180,1737535860622,-500.0,0.00020541,2]
[349957181,1737535860631,-500.0,0.00020541,2]
[349957182,1737535860641,-1158.45,0.00020541,2]
[349957183,1737535860650,-500.0,0.00020541,2]
[349957184,1737535860659,-872.83,0.00020541,2]
[349957185,1737535860669,-2209.36,0.00020541,2]
[349957186,1737535860678,-3528.61,0.00020541,2]
[349957187,1737535860687,-773.09,0.00020541,2]
[349957188,1737535860698,-500.0,0.00020541,2]
[349957189,1737535860707,-614.04,0.00020541,2]
[349957190,1737535860718,-1417.55,0.00020541,2]
[349957191,1737535860728,-1067.42,0.00020541,2]
[349957192,1737535860737,-2595.8,0.00020541,2]
[349957193,1737535860748,-633.97,0.00020541,2]
[349957194,1737535860758,-500.0,0.00020541,2]
[349957195,1737535860768,-628.26,0.00020541,2]
[349957196,1737535860778,-1154.33,0.00020541,2]
[349957197,1737535860787,-500.0,0.00020541,2]
[349957198,1737535860797,-500.0,0.00020541,2]
[349957199,1737535860807,-500.0,0.00020541,2]
[349957200,1737535860816,-1232.72,0.00020541,2]
[349957201,1737535860825,-4385.76,0.00020541,2]
[349957202,1737535860834,-851.04,0.00020541,2]
[349957203,1737535860844,-500.0,0.00020541,2]
[349957204,1737535860854,-500.0,0.00020541,2]
[349957205,1737535860863,-1178.01,0.00020541,2]
[349957206,1737535860872,-500.0,0.00020541,2]
[349957207,1737535860882,-844.74,0.00020541,2]
[349957208,1737535860891,-500.0,0.00020541,2]
[349957209,1737535860901,-500.0,0.00020541,2]
[349957210,1737535860910,-2089.41,0.00020541,2]
[349957211,1737535860919,-577.47,0.00020541,2]
[349957212,1737535860930,-690.97,0.00020541,2]
[349957213,1737535860941,-500.0,0.00020541,2]
[349957214,1737535860951,-1722.38,0.00020541,2]
[349957215,1737535860961,-1001.69,0.00020541,2]
[349957216,1737535860971,-799.05,0.00020541,2]
[349957217,1737535860981,-1433.52,0.00020541,2]
[349957218,1737535860990,-680.57,0.00020541,2]
[349957219,1737535861001,-866.15,0.00020541,2]
[349957220,1737535861011,-500.0,0.00020541,2]
[349957221,1737535861022,-500.0,0.00020541,2]
[349957222,1737535861032,-525.26,0.00020541,2]
[349957223,1737535861041,-658.51,0.00020541,2]
[349957224,1737535861050,-1460.47,0.00020541,2]
[349957225,1737535861060,-500.0,0.00020541,2]
[349957226,1737535861069,-1012.24,0.00020541,2]
[349957227,1737535861079,-703.88,0.00020541,2]
[349957228,1737535861088,-500.0,0.00020541,2]
[349957229,1737535861098,-500.0,0.00020541,2]
[349957230,1737535861107,-2713.11,0.00020541,2]
[349957231,1737535861117,-2398.07,0.00020541,2]
[349957232,1737535861127,-508.44,0.00020541,2]
[349957233,1737535861136,-2259.96,0.00020541,2]
[349957234,1737535861145,-500.0,0.00020541,2]
[349957235,1737535861155,-500.0,0.00020541,2]
[349957236,1737535861165,-1542.11,0.00020541,2]
[349957237,1737535861174,-500.0,0.00020541,2]
[349957238,1737535861183,-1046.31,0.00020541,2]
[349957239,1737535861193,-876.07,0.00020541,2]
[349957240,1737535861204,-2654.27,0.00020541,2]
[349957241,1737535861213,-500.0,0.00020541,2]
[349957242,1737535861222,-588.37,0.00020541,2]
[349957243,1737535861232,-1263.25,0.00020541,2]
[349957244,1737535861242,-588.54,0.00020541,2]
[349957245,1737535861251,-623.1,0.00020542,2]
[349957246,1737535861261,-500.0,0.00020542,2]
[349957247,1737535861271,-500.0,0.00020542,2]
[349957248,1737535861281,-500.0,0.00020542,2]
[349957249,1737535861290,-500.0,0.00020542,2]
[349957250,1737535861300,-500.0,0.00020542,2]
[349957251,1737535861310,-500.0,0.00020542,2]
[349957252,1737535861320,-906.12,0.00020542,2]
[349957253,1737535861329,-500.0,0.00020542,2]
[349957254,1737535861339,-500.0,0.00020542,2]
[349957255,1737535861349,-500.0,0.00020542,2]
[349957256,1737535861358,-557.75,0.00020542,2]
[349957257,1737535861368,-468.8246174,0.00020542,2]
[349957258,1737535861378,-500.0,0.00020542,2]
[349957259,1737535861387,-500.0,0.00020542,2]
[349957260,1737535861396,-500.0,0.00020542,2]
[349957261,1737535861406,-523.97,0.00020542,2]
[349957262,1737535861415,-500.0,0.00020542,2]
[349957263,1737535861425,-684.22,0.00020542,2]
[349957264,1737535861434,-500.0,0.00020542,2]
[349957265,1737535861445,-500.76,0.00020542,2]
[349957266,1737535861456,-500.0,0.00020542,2]
[349957267,1737535861466,-500.0,0.00020542,2]
[349957268,1737535861475,-151.0,0.00020542,2]
[349957269,1737535861484,-500.0,0.00020542,2]
[349957270,1737535861493,-500.0,0.00020542,2]
[349957271,1737535861503,-500.0,0.00020542,2]
[349957272,1737535861513,-500.0,0.00020542,2]
[349957273,1737535861522,-500.0,0.00020542,2]
[349957274,1737535861531,-500.0,0.00020542,2]
[349957275,1737535861541,-500.0,0.00020542,2]
[349957276,1737535861550,-891.46,0.00020542,2]
[349957277,1737535861560,-626.77,0.00020542,2]
[349957278,1737535861570,-974.67,0.00020542,2]
[349957279,1737535861579,-500.0,0.00020542,2]
[349957280,1737535861589,-500.0,0.00020542,2]
[349957281,1737535861598,-667.94,0.00020542,2]
[349957282,1737535861607,-1171.25,0.00020542,2]
[349957283,1737535861616,-720.08,0.00020542,2]
[349957284,1737535861625,-1121.27,0.00020542,2]
[349957285,1737535861634,-500.0,0.00020542,2]
[349957286,1737535861643,-500.0,0.00020542,2]
[349957287,1737535861652,-761.43,0.00020542,2]
[349957288,1737535861661,-500.0,0.00020542,2]
[349957289,1737535861671,-885.44,0.00020542,2]
[349957290,1737535861680,-593.11,0.00020542,2]
[349957291,1737535861689,-810.91,0.00020542,2]
[349957292,1737535861700,-500.0,0.00020542,2]
[349957293,1737535861710,-797.59,0.00020542,2]
[349957294,1737535861719,-500.0,0.00020542,2]
[349957295,1737535861729,-500.0,0.00020542,2]
[349957296,1737535861738,-607.39,0.00020542,2]
[349957297,1737535861747,-500.0,0.00020542,2]
[349957298,1737535861757,-500.0,0.00020542,2]
[349957299,1737535861767,-500.0,0.00020542,2]
[349957300,1737535861778,-500.0,0.00020542,2]
[349957301,1737535861788,-669.28,0.00020542,2]
[349957302,1737535861797,-500.0,0.00020542,2]
[349957303,1737535861807,-500.0,0.00020542,2]
[349957304,1737535861816,-500.0,0.00020542,2]
[349957305,1737535861826,-500.0,0.00020542,2]
[349957306,1737535861835,-500.0,0.00020542,2]
[349957307,1737535861844,-500.0,0.00020542,2]
[349957308,1737535861853,-500.0,0.00020542,2]
[349957309,1737535861862,-500.0,0.00020542,2]
[349957310,1737535861872,-822.84,0.00020542,2]
[349957311,1737535861881,-984.18,0.00020542,2]
[349957312,1737535861890,-1080.22,0.00020542,2]
[349957313,1737535861899,-500.0,0.00020542,2]
[349957314,1737535861909,-500.0,0.00020542,2]
[349957315,1737535861918,-500.0,0.00020542,2]
[349957316,1737535861928,-500.0,0.00020542,2]
[349957317,1737535861940,-500.0,0.00020542,2]
[349957318,1737535861951,-502.19,0.00020542,2]
[349957319,1737535861961,-500.0,0.00020542,2]
[349957320,1737535861971,-500.0,0.00020542,2]
[349957321,1737535861981,-543.73,0.00020542,2]
[349957322,1737535861990,-500.0,0.00020542,2]
[349957323,1737535862000,-500.0,0.00020542,2]
[349957324,1737535862012,-1225.68,0.00020542,2]
[349957325,1737535862021,-1080.05,0.00020542,2]
[349957326,1737535862031,-500.0,0.00020542,2]
[349957327,1737535862040,-1315.5,0.00020542,2]
[349957328,1737535862049,-5326.32,0.00020542,2]
[349957329,1737535862058,-1134.22,0.00020542,2]
[349957330,1737535862067,-8872.35,0.00020542,2]
[349957331,1737535862077,-548.7,0.00020542,2]
[349957332,1737535862086,-500.0,0.00020542,2]
[349957333,1737535862096,-1108.55,0.00020542,2]
[349957334,1737535862220,-560.25,0.00020542,2]
[349957335,1737535862230,-500.0,0.00020542,2]
[349957336,1737535862240,-500.0,0.00020542,2]
[349957337,1737535862251,-533.36,0.00020542,2]
[349957338,1737535862261,-879.16,0.00020542,2]
[349957339,1737535862270,-666.0,0.00020542,2]
[349957340,1737535862279,-500.0,0.00020542,2]
[349957341,1737535862289,-2887.3,0.00020542,2]
[349957342,1737535862299,-500.0,0.00020542,2]
[349957343,1737535862308,-500.0,0.00020542,2]
[349957344,1737535862318,-1192.26,0.00020542,2]
[349957345,1737535862329,-500.0,0.00020542,2]
[349957346,1737535862338,-1613.65,0.00020542,2]
[349957347,1737535862348,-840.93,0.00020542,2]
[349957348,1737535862357,-1815.41,0.00020542,2]
[349957349,1737535862366,-627.34,0.00020542,2]
[349957350,1737535862376,-552.73,0.00020542,2]
[349957351,1737535862385,-500.0,0.00020542,2]
[349957352,1737535862394,-1000.0,0.00020542,2]
[349957353,1737535862403,-844.08,0.00020542,2]
[349957354,1737535862414,-500.0,0.00020542,2]
[349957355,1737535862423,-500.0,0.00020542,2]
[349957356,1737535862433,-500.0,0.00020542,2]
[349957357,1737535862443,-2817.94,0.00020542,2]
[349957358,1737535862454,-1195.95,0.00020542,2]
[349957359,1737535862463,-500.0,0.00020542,2]
[349957360,1737535862473,-2298.19,0.00020542,2]
[349957361,1737535862482,-721.13,0.00020542,2]
[349957362,1737535862490,-537.9,0.00020542,2]
[349957363,1737535862499,-1122.6,0.00020542,2]
[349957364,1737535862511,-273.35475304,0.00020542,2]
[349957365,1737535862520,-1284.0,0.00020542,2]
[349957366,1737535862530,-584.46,0.00020542,2]
[349957367,1737535862539,-793.95,0.00020543,2]
[349957368,1737535862548,-710.25,0.00020543,2]
[349957369,1737535862559,-500.0,0.00020543,2]
[349957370,1737535862569,-500.0,0.00020543,2]
[349957371,1737535862579,-500.0,0.00020543,2]
[349957372,1737535862588,-1448.78,0.00020543,2]
[349957373,1737535862598,-1032.82,0.00020543,2]
[349957374,1737535862608,-1224.48,0.00020543,2]
[349957375,1737535862617,-565.46,0.00020543,2]
[349957376,1737535862627,-500.0,0.00020543,2]
[349957377,1737535862636,-500.0,0.00020543,2]
[349957378,1737535862647,-500.0,0.00020543,2]
[349957379,1737535862658,-500.0,0.00020543,2]
[349957380,1737535862668,-500.0,0.00020543,2]
[349957381,1737535862678,-500.0,0.00020543,2]
[349957382,1737535862688,-205.26902049,0.00020567,2]
[349957383,1737535862698,-205.26902049,0.00020678,2]
[349957384,1737535862709,-530.82,0.00020713,2]
[349957385,1737535862718,-864.33043042,0.00020763,2]
[349957386,1737535862728,-432.61797383,0.00020764,2]
[349957387,1737535862738,-205.26902049,0.00020789,2]
[349957388,1737535862747,-3000.0,0.0002079,2]
[349957389,1737535862757,-179.38451187,0.000208,2]
[349957390,1737535862766,-745.0,0.000208,2]
[349957391,1737535862776,-500.0,0.00020815,2]
[349957392,1737535862787,-687.92,0.00020815,2]
[349957393,1737535862796,-829.09,0.00020815,2]
[349957394,1737535862805,-500.0,0.00020815,2]
[349957395,1737535862815,-500.0,0.00020815,2]
[349957396,1737535862824,-706.98,0.00020815,2]
[349957397,1737535862834,-524.39,0.00020815,2]
[349957398,1737535862843,-500.0,0.00020815,2]
[349957399,1737535862853,-500.0,0.00020815,2]
[349957400,1737535862862,-555.75,0.00020815,2]
[349957401,1737535862871,-882.85,0.00020815,2]
[349957402,1737535862882,-974.81,0.00020815,2]
[349957403,1737535862891,-500.0,0.00020815,2]
[349957404,1737535862901,-500.0,0.00020815,2]
[349957405,1737535862910,-1033.33,0.00020815,2]
[349957406,1737535862920,-881.186028,0.00020815,2]
[349957407,1737535862932,-668.82,0.00020815,2]
[349957408,1737535862942,-584.92,0.00020815,2]
[349957409,1737535862954,-597.75,0.00020815,2]
[349957410,1737535862964,-1383.258647,0.00020815,2]
[349957411,1737535862975,-500.0,0.00020815,2]
[349957412,1737535862984,-500.0,0.00020815,2]
[349957413,1737535862994,-1189.34,0.00020815,2]
[349957414,1737535863004,-500.0,0.00020815,2]
[349957415,1737535863014,-500.0,0.00020815,2]
[349957416,1737535863024,-708.96,0.00020815,2]
[349957417,1737535863034,-664.95,0.00020815,2]
[349957418,1737535863044,-1395.76,0.00020815,2]
[349957419,1737535863054,-567.8,0.00020815,2]
[349957420,1737535863063,-500.0,0.00020815,2]
[349957421,1737535863073,-1026.06,0.00020815,2]
[349957422,1737535863082,-500.0,0.00020815,2]
[349957423,1737535863093,-500.0,0.00020815,2]
[349957424,1737535863103,-553.55,0.00020815,2]
[349957425,1737535863113,-500.0,0.00020815,2]
[349957426,1737535863123,-1399.0,0.00020815,2]
[349957427,1737535863133,-897.03,0.00020815,2]
[349957428,1737535863143,-500.0,0.00020815,2]
[349957429,1737535863152,-880.39,0.00020815,2]
[349957430,1737535863162,-500.0,0.00020815,2]
[349957431,1737535863173,-1082.05,0.00020815,2]
[349957432,1737535863183,-1124.96,0.00020815,2]
[349957433,1737535863192,-500.0,0.00020815,2]
[349957434,1737535863205,-518.88670747,0.00020815,2]
[349957435,1737535863215,-791.67,0.00020815,2]
[349957436,1737535863225,-659.65,0.00020815,2]
[349957437,1737535863235,-897.68,0.00020815,2]
[349957438,1737535863244,-1008.18,0.00020815,2]
[349957439,1737535863254,-1914.1,0.00020815,2]
[349957440,1737535863265,-211.25410194,0.00020815,2]
[349957441,1737535863274,-500.0,0.00020815,2]
[349957442,1737535863285,-805.46,0.00020815,2]
[349957443,1737535863295,-2511.45,0.00020815,2]
[349957444,1737535863304,-500.0,0.00020815,2]
[349957445,1737535863314,-500.0,0.00020815,2]
[349957446,1737535863324,-1206.52,0.00020815,2]
[349957447,1737535863334,-4007.33,0.00020815,2]
[349957448,1737535863344,-2492.62,0.00020815,2]
[349957449,1737535863354,-1678.2,0.00020815,2]
[349957450,1737535863364,-1512.08,0.00020815,2]
[349957451,1737535863375,-500.0,0.00020815,2]
[349957452,1737535863385,-956.5,0.00020815,2]
[349957453,1737535863395,-500.0,0.00020815,2]
[349957454,1737535863406,-500.0,0.00020815,2]
[349957455,1737535863415,-859.9,0.00020815,2]
[349957456,1737535863426,-564.94,0.00020815,2]
[349957457,1737535863435,-500.0,0.00020815,2]
[349957458,1737535863446,-500.0,0.00020815,2]
[349957459,1737535863458,-790.06,0.00020815,2]
[349957460,1737535863469,-2269.74,0.00020815,2]
[349957461,1737535863479,-500.0,0.00020815,2]
[349957462,1737535863488,-4879.48,0.00020815,2]
[349957463,1737535863498,-500.0,0.00020815,2]
[349957464,1737535863507,-1144.32,0.00020815,2]
[349957465,1737535863517,-500.0,0.00020815,2]
[349957466,1737535863527,-2054.82,0.00020815,2]
[349957467,1737535863536,-827.92,0.00020815,2]
[349957468,1737535863545,-1961.71,0.00020815,2]
[349957469,1737535863555,-1416.44,0.00020815,2]
[349957470,1737535863565,-3220.53,0.00020815,2]
[349957471,1737535863575,-342.5435736,0.00020815,2]
[349957472,1737535863585,-2309.19,0.00020815,2]
[349957473,1737535863595,-1086.97,0.00020815,2]
[349957474,1737535863605,-836.64,0.00020815,2]
[349957475,1737535863615,-1125.48,0.00020815,2]
[349957476,1737535863624,-1355.86,0.00020815,2]
[349957477,1737535863636,-537.78,0.00020815,2]
[349957478,1737535863646,-644.18,0.00020815,2]
[349957479,1737535863655,-4222.06,0.00020815,2]
[349957480,1737535863665,-1148.64,0.00020815,2]
[349957481,1737535863675,-1996.49,0.00020815,2]
[349957482,1737535863685,-3033.92,0.00020815,2]
[349957483,1737535863696,-500.0,0.00020815,2]
[349957484,1737535863707,-2532.04,0.00020815,2]
[349957485,1737535863717,-574.92,0.00020815,2]
[349957486,1737535863726,-940.76,0.00020815,2]
[349957487,1737535863736,-500.0,0.00020815,2]
[349957488,1737535863745,-1198.58,0.00020815,2]
[349957489,1737535863754,-1231.92,0.00020815,2]
[349957490,1737535863763,-1021.16,0.00020815,2]
[349957491,1737535863773,-500.0,0.00020815,2]
[349957492,1737535863783,-850.43,0.00020815,2]
[349957493,1737535863793,-626.58,0.00020815,2]
[349957494,1737535863803,-1522.34,0.00020815,2]
[349957495,1737535863812,-1365.0,0.00020815,2]
[349957496,1737535863822,-603.87,0.00020815,2]
[349957497,1737535863832,-500.0,0.00020815,2]
[349957498,1737535863842,-1288.07,0.00020815,2]
[349957499,1737535863852,-844.42,0.00020815,2]
[349957500,1737535863862,-500.0,0.00020815,2]
[349957501,1737535863871,-566.83,0.00020815,2]
[349957502,1737535863881,-537.66,0.00020815,2]
[349957503,1737535863893,-511.79,0.00020815,2]
[349957504,1737535863902,-913.82,0.00020815,2]
[349957505,1737535863911,-2700.97,0.00020815,2]
[349957506,1737535863922,-500.0,0.00020815,2]
[349957507,1737535863935,-500.0,0.00020815,2]
[349957508,1737535863945,-1158.45,0.00020815,2]
[349957509,1737535863958,-500.0,0.00020815,2]
[349957510,1737535863968,-872.83,0.00020815,2]
[349957511,1737535863979,-2209.36,0.00020815,2]
[349957512,1737535863989,-3528.61,0.00020815,2]
[349957513,1737535863999,-773.09,0.00020815,2]
[349957514,1737535864012,-500.0,0.00020815,2]
[349957515,1737535864023,-614.04,0.00020815,2]
[349957516,1737535864148,-1417.55,0.00020815,2]
[349957517,1737535864159,-1067.42,0.00020815,2]
[349957518,1737535864170,-2595.8,0.00020815,2]
[349957519,1737535864180,-633.97,0.00020815,2]
[349957520,1737535864190,-500.0,0.00020815,2]
[349957521,1737535864201,-628.26,0.00020815,2]
[349957522,1737535864211,-1154.33,0.00020815,2]
[349957523,1737535864221,-490.2,0.00020815,2]
[349957524,1737535864231,-500.0,0.00020815,2]
[349957525,1737535864241,-500.0,0.00020815,2]
[349957526,1737535864251,-1232.72,0.00020815,2]
[349957527,1737535864262,-4385.76,0.00020815,2]
[349957528,1737535864271,-500.0,0.00020815,2]
[349957529,1737535864281,-359.11,0.00020815,2]
[349957530,1737535864290,-1178.01,0.00020815,2]
[349957531,1737535864300,-500.0,0.00020815,2]
[349957532,1737535864310,-851.04,0.00020815,2]
[349957533,1737535864320,-844.74,0.00020815,2]
[349957534,1737535864340,-500.0,0.00020815,2]
[349957535,1737535864350,-500.0,0.00020815,2]
[349957536,1737535864361,-2089.41,0.00020815,2]
[349957537,1737535864371,-577.47,0.00020815,2]
[349957538,1737535864381,-690.97,0.00020815,2]
[349957539,1737535864392,-423.41,0.00020815,2]
[349957540,1737535864402,-1722.38,0.00020815,2]
[349957541,1737535864412,-1001.69,0.00020815,2]
[349957542,1737535864423,-799.05,0.00020815,2]
[349957543,1737535864432,-1433.52,0.00020815,2]
[349957544,1737535864442,-680.57,0.00020815,2]
[349957545,1737535864454,-866.15,0.00020815,2]
[349957546,1737535864464,-500.0,0.00020815,2]
[349957547,1737535864474,-500.0,0.00020815,2]
[349957548,1737535864484,-525.26,0.00020815,2]
[349957549,1737535864494,-658.51,0.00020815,2]
[349957550,1737535864504,-1460.47,0.00020815,2]
[349957551,1737535864513,-500.0,0.00020815,2]
[349957552,1737535864523,-1012.24,0.00020815,2]
[349957553,1737535864533,-703.88,0.00020815,2]
[349957554,1737535864544,-500.0,0.00020815,2]
[349957555,1737535864554,-500.0,0.00020815,2]
[349957556,1737535864564,-2713.11,0.00020815,2]
[349957557,1737535864574,-2398.07,0.00020815,2]
[349957558,1737535864584,-508.44,0.00020815,2]
[349957559,1737535864594,-2259.96,0.00020815,2]
[349957560,1737535864605,-500.0,0.00020815,2]
[349957561,1737535864615,-500.0,0.00020815,2]
[349957562,1737535864625,-1542.11,0.00020815,2]
[349957563,1737535864635,-1046.31,0.00020815,2]
[349957564,1737535864644,-876.07,0.00020815,2]
[349957565,1737535864655,-2654.27,0.00020815,2]
[349957566,1737535864664,-500.0,0.00020815,2]
[349957567,1737535864675,-588.37,0.00020815,2]
[349957568,1737535864687,-1263.25,0.00020815,2]
[349957569,1737535864698,-623.1,0.00020816,2]
[349957570,1737535864708,-500.0,0.00020816,2]
[349957571,1737535864718,-500.0,0.00020816,2]
[349957572,1737535864728,-500.0,0.00020816,2]
[349957573,1737535864737,-500.0,0.00020816,2]
[349957574,1737535864747,-500.0,0.00020816,2]
[349957575,1737535864756,-500.0,0.00020816,2]
[349957576,1737535864765,-906.12,0.00020816,2]
[349957577,1737535864775,-500.0,0.00020816,2]
[349957578,1737535864789,-500.0,0.00020816,2]
[349957579,1737535864799,-500.0,0.00020816,2]
[349957580,1737535864809,-557.75,0.00020816,2]
[349957581,1737535864819,-500.0,0.00020816,2]
[349957582,1737535864829,-500.0,0.00020816,2]
[349957583,1737535864839,-500.0,0.00020816,2]
[349957584,1737535864850,-523.97,0.00020816,2]
[349957585,1737535864860,-500.0,0.00020816,2]
[349957586,1737535864869,-684.22,0.00020816,2]
[349957587,1737535864880,-500.0,0.00020816,2]
[349957588,1737535864890,-500.76,0.00020816,2]
[349957589,1737535864900,-226.08,0.00020816,2]
[349957590,1737535864910,-481.17480492,0.00020816,2]
[349957591,1737535864920,-500.0,0.00020816,2]
[349957592,1737535864934,-500.0,0.00020816,2]
[349957593,1737535864946,-500.0,0.00020816,2]
[349957594,1737535864957,-500.0,0.00020816,2]
[349957595,1737535864966,-500.0,0.00020816,2]
[349957596,1737535864979,-500.0,0.00020816,2]
[349957597,1737535864988,-500.0,0.00020816,2]
[349957598,1737535864998,-891.46,0.00020816,2]
[349957599,1737535865012,-626.77,0.00020816,2]
[349957600,1737535865024,-974.67,0.00020816,2]
[349957601,1737535865033,-500.0,0.00020816,2]
[349957602,1737535865043,-500.0,0.00020816,2]
[349957603,1737535865053,-667.94,0.00020816,2]
[349957604,1737535865062,-1171.25,0.00020816,2]
[349957605,1737535865072,-720.08,0.00020816,2]
[349957606,1737535865081,-1121.27,0.00020816,2]
[349957607,1737535865090,-500.0,0.00020816,2]
[349957608,1737535865100,-429.50456623,0.00020816,2]
[349957609,1737535865110,-761.43,0.00020816,2]
[349957610,1737535865119,-500.0,0.00020816,2]
[349957611,1737535865128,-885.44,0.00020816,2]
[349957612,1737535865138,-593.11,0.00020816,2]
[349957613,1737535865147,-810.91,0.00020816,2]
[349957614,1737535865157,-500.0,0.00020816,2]
[349957615,1737535865166,-797.59,0.00020816,2]
[349957616,1737535865176,-500.0,0.00020816,2]
[349957617,1737535865186,-500.0,0.00020816,2]
[349957618,1737535865195,-607.39,0.00020816,2]
[349957619,1737535865206,-609.77891105,0.00020816,2]
[349957620,1737535865215,-500.0,0.00020816,2]
[349957621,1737535865225,-500.0,0.00020816,2]
[349957622,1737535865234,-500.0,0.00020816,2]
[349957623,1737535865243,-669.28,0.00020816,2]
[349957624,1737535865252,-500.0,0.00020816,2]